fUST/lending_fUST_20240728
["ID","MTS","AMOUNT","RATE_DAILY","PERIOD"]
[333471687,1722163881891,-6250.0,0.00027397,120]
[333471688,1722163881900,-404.28540167,0.000274,2]
[333471689,1722163881910,-158789.4072,0.00027444,30]
[333471690,1722163881919,-1500.0,0.000275,2]
[333471691,1722163881929,-43715.72024053,0.000275,2]
[333471692,1722163881938,-5954.4375679,0.000275,30]
[333471693,1722163881948,-152.61249675,0.000276,11]
[333471694,1722163881957,-27783.00550309,0.000279,2]
[333471695,1722163881967,-31516.36917801,0.0002799,2]
[333471696,1722163881976,-515.91951512,0.00028,2]
[333471697,1722163881985,-997.77981909,0.00028,120]
[333471698,1722163881995,-501.22239032,0.00028,30]
[333471699,1722163882004,-300.0,0.00028,120]
[333471700,1722163882014,-1893.50654929,0.00028447,2]
[333471701,1722163882023,-587.8153023,0.00028714,2]
[333471702,1722163882034,-1814.10060223,0.000288,120]
[333471703,1722163882043,-170.47955,0.0002887,2]
[333471704,1722163882052,-17449.62776973,0.000289,2]
[333471705,1722163882062,-850.32311775,0.00029,2]
[333471706,1722163882071,-277.55218142,0.00029,120]
[333471707,1722163882081,-5000.0,0.00029,5]
[333471708,1722163882090,-1895.74426501,0.00029052,2]
[333471709,1722163882099,-1776.0329,0.00029444,30]
[333471710,1722163882109,-152.61249675,0.000296,18]
[333471711,1722163882118,-320.56691333,0.0002988,30]
[333471712,1722163882128,-2000.0,0.000299,120]
[333471713,1722163882137,-200.0,0.00029901,120]
[333471714,1722163882146,-406.77847016,0.0003,3]
[333471715,1722163882155,-920.08841794,0.0003,4]
[333471716,1722163882165,-472.04508352,0.0003,4]
[333471717,1722163882174,-154.74467129,0.0003,4]
[333471718,1722163882184,-385.39627534,0.0003,10]
[333471719,1722163882193,-7781.1082774,0.0003,10]
[333471720,1722163882207,-203.41946974,0.0003,30]
[333471721,1722163882216,-300.0,0.0003,120]
[333471722,1722163882225,-80000.0,0.0003,120]
[333471723,1722163882234,-44253.73276053,0.0003,7]
[333471724,1722163882243,-155.94855631,0.0003,7]
[333471725,1722163882252,-1004.0304267,0.0003,7]
[333471726,1722163882262,-5998.29345498,0.0003,30]
[333471727,1722163882271,-154.72922386,0.0003,2]
[333471728,1722163882284,-6130.0,0.0003,10]
[333471729,1722163882295,-5534.56644495,0.0003,3]
[333471730,1722163882705,156.18178664,9.799e-05,2]
[333471731,1722163882802,250.22702269,0.00012,2]
[333471749,1722164839137,-182.53208596,9.899e-05,2]
[333471750,1722164839159,-250.22702269,9.999e-05,2]
[333471751,1722164839181,-309.3349299,0.0001,2]
[333471752,1722164839204,-23.36992546,0.00010959,2]
[333471753,1722164843086,-143.29674054,0.00010959,2]
[333471754,1722164843110,-166.666666,0.00011215,2]
[333471755,1722164843133,-118.96926163,0.00011247,2]
[333471756,1722164846101,-47.11207137,0.00011247,2]
[333471757,1722164846124,-166.081333,0.00011296,2]
[333471758,1722164846147,-166.081333,0.00011345,2]
[333471759,1722164846314,-166.081333,0.00011394,2]
[333471760,1722164846339,-166.081333,0.00011443,2]
[333471761,1722164846361,-166.666666,0.00011472,2]
[333471762,1722164846385,-166.081333,0.00011492,2]
[333471763,1722164846408,-166.081333,0.0001154,2]
[333471764,1722164846435,-300.0,0.00011569,2]
[333471765,1722164846459,-11493.28551043,0.0001157,2]
[333471769,1722164945095,-250.22702269,9.999e-05,2]
[333471770,1722164945120,-300.0,0.00011569,2]
[333471771,1722164945144,-5996.57189376,0.0001157,2]
[333471772,1722164949140,-1288.067597,0.0001157,2]
[333471773,1722164970120,-6122.07499881,0.0001157,2]
[333471774,1722164970142,-257.16409311,0.0001157,2]
[333471775,1722164970163,-520.25685212,0.0001157,2]
[333471776,1722164970187,-166.081333,0.00011589,2]
[333471777,1722164970209,-166.081333,0.00011638,2]
[333471778,1722164970232,-166.081333,0.00011687,2]
[333471779,1722164970254,-166.666666,0.00011728,2]
[333471780,1722164970276,-166.081333,0.00011736,2]
[333471781,1722164970297,-166.081333,0.00011785,2]
[333471782,1722164970318,-166.081333,0.00011833,2]
[333471783,1722164970338,-166.666666,0.00011985,2]
[333471784,1722164970358,-1839.63099781,0.00012,2]
[333471785,1722164970379,-166.666666,0.00012241,2]
[333471864,1722165039816,250.22702269,9.999e-05,2]
[333471900,1722165040510,-1200.1068144,0.00012602,2]
[333471916,1722165040678,-1028.9044503,0.00012602,2]
[333471918,1722165040687,-174.169606,0.00013425,2]
[333471920,1722165040696,-236.68831867,0.00013598,2]
[333471922,1722165040706,-300.0,0.00013687,2]
[333471924,1722165040715,-4099.32492851,0.00013688,2]
[333472019,1722165043492,-1090.02613816,0.00013688,2]
[333472021,1722165043505,-306.24798982,0.00013688,2]
[333472065,1722165046621,-1050.34548557,0.00013688,2]
[333472069,1722165147039,159.76853553,0.0002335,120]
[333472077,1722166028147,-208.58162396,9.801e-05,2]
[333472078,1722166154107,-164.24967346,9.801e-05,2]
[333472079,1722166154129,-146.12690143,9.801e-05,2]
[333472080,1722166155118,-8.75606001,9.801e-05,2]
[333472081,1722166155141,-250.22702269,9.999e-05,2]
[333472082,1722166155169,-166.666666,0.00011845,2]
[333472083,1722166155198,-7394.0540512,0.00012026,2]
[333472084,1722166155224,-164.58079,0.00012139,2]
[333472085,1722166155247,-166.666666,0.00012168,2]
[333472086,1722166155272,-164.58079,0.00012297,2]
[333472087,1722166155296,-164.58079,0.00012455,2]
[333472088,1722166155318,-19.8871641,0.00012491,2]
[333472089,1722166166107,-146.7795019,0.00012491,2]
[333472090,1722166166130,-103.2204981,0.00012613,2]
[333472175,1722166238580,-61.3602919,0.00012613,2]
[333472177,1722166238590,-164.58079,0.00012772,2]
[333472179,1722166238600,-166.666666,0.00012814,2]
[333472181,1722166238610,-166.666666,0.00013136,2]
[333472183,1722166238620,-755.66468324,0.00013205,2]
[333472367,1722166244591,-4553.13843823,0.00013205,2]
[333472368,1722166244601,-367.60913684,0.00013321,2]
[333472369,1722166244611,-157.687471,0.00013425,2]
[333472370,1722166244620,-166.666666,0.00013459,2]
[333472371,1722166244630,-540.48588356,0.00013598,2]
[333472372,1722166244639,-184.49014654,0.00013598,2]
[333472373,1722166244648,-300.0,0.00013687,2]
[333472374,1722166244658,-4258.30629382,0.00013688,2]
[333472375,1722166244667,-2641.80323361,0.00013698,5]
[333472376,1722166244676,-500.0,0.00013698,2]
[333472377,1722166244686,-500.0,0.00013698,2]
[333472378,1722166244695,-300.5493934,0.00013698,2]
[333472387,1722166246604,-199.4506066,0.00013698,2]
[333472388,1722166246614,-500.0,0.00013698,2]
[333472389,1722166246624,-228.13718149,0.00013698,2]
[333472390,1722166250338,257.15,0.00010959,2]
[333472391,1722166266411,250.22702269,9.999e-05,2]
[333472392,1722166301063,250.22702269,0.0001212,2]
[333472393,1722166306263,251.18373258,9.999e-05,2]
[333472394,1722166311650,119.87809009,0.0001,2]
[333472407,1722167226106,-250.22702269,9.999e-05,2]
[333472408,1722167226128,-34.80480996,0.0001,2]
[333472409,1722167226151,-166.666666,0.00012008,2]
[333472410,1722167226174,-98.85000961,0.00012193,2]
[333472411,1722167233166,-276.28320566,0.00012193,2]
[333472412,1722167239170,-154.66746495,0.00012193,2]
[333472444,1722167347120,-273.37336231,9.9e-05,2]
[333472446,1722167347144,-250.22702269,9.999e-05,2]
[333472448,1722167347166,-166.666666,0.00011931,2]
[333472450,1722167347188,-100.480722,0.00012257,2]
[333472700,1722167360116,-66.185944,0.00012257,2]
[333472701,1722167360138,-167.003482,0.00012385,2]
[333472702,1722167360159,-104.04979049,0.00012546,2]
[333472748,1722167433788,239.9845649,0.0001,2]
[333472778,1722167438731,-156.18178664,0.00012446,2]
[333472779,1722167438741,-62.95369151,0.00012546,2]
[333472780,1722167438751,-166.666666,0.00012582,2]
[333472781,1722167438761,-167.003482,0.00012707,2]
[333472782,1722167438771,-167.003482,0.00012869,2]
[333472783,1722167438781,-166.666666,0.00012907,2]
[333472784,1722167438790,-167.003482,0.0001303,2]
[333472785,1722167438799,-166.666666,0.00013232,2]
[333472786,1722167438809,-162.505546,0.00013425,2]
[333472787,1722167438818,-5308.80312147,0.00013488,2]
[333472788,1722167438828,-166.666666,0.00013558,2]
[333472789,1722167438838,-846.8176063,0.00013597,2]
[333472790,1722167438848,-551.83500455,0.00013598,2]
[333472791,1722167438857,-367.60913684,0.00013679,2]
[333472792,1722167438867,-300.0,0.00013687,2]
[333472793,1722167438876,-300.0,0.00013687,2]
[333472794,1722167438886,-1320.90161681,0.00013688,5]
[333472795,1722167438895,-2999.51537988,0.00013688,2]
[333472796,1722167438909,-4470.01465367,0.00013688,2]
[333472808,1722167440840,-3951.65903696,0.00013688,2]
[333472809,1722167440892,-4977.39548417,0.00013688,2]
[333472839,1722167443696,-3992.10140311,0.00013688,2]
[333472849,1722167447551,250.22702269,9.999e-05,2]
[333472855,1722167500051,250.22702269,0.0001212,2]
[333472918,1722168370327,-214.84560598,9.899e-05,2]
[333472919,1722168370353,-250.22702269,9.999e-05,2]
[333472920,1722168370377,-200.0,0.0001,2]
[333472921,1722168370400,-166.666666,0.00012089,2]
[333472922,1722168370422,-3388.74350524,0.0001212,2]
[333472923,1722168370445,-164.207934,0.00012248,2]
[333472924,1722168370470,-164.207934,0.00012328,2]
[333472925,1722168370494,-164.207934,0.00012408,2]
[333472926,1722168370516,-166.666666,0.00012419,2]
[333472927,1722168370546,-164.207934,0.00012487,2]
[333472928,1722168370570,-164.207934,0.00012567,2]
[333472929,1722168370594,-164.207934,0.00012647,2]
[333472930,1722168370620,-164.207934,0.00012727,2]
[333472931,1722168370645,-166.666666,0.00012748,2]
[333472932,1722168370668,-164.207934,0.00012806,2]
[333472933,1722168370695,-164.207934,0.00012886,2]
[333472934,1722168370719,-166.666666,0.00013078,2]
[333472935,1722168370745,-300.0,0.00013227,2]
[333472936,1722168370768,-300.0,0.00013227,2]
[333472937,1722168370792,-5308.80312147,0.00013228,2]
[333472938,1722168370815,-367.60913684,0.00013238,2]
[333472939,1722168370839,-166.666666,0.00013408,2]
[333472940,1722168370862,-165.254992,0.00013425,2]
[333472941,1722168370886,-996.21222785,0.00013598,2]
[333472942,1722168370911,-477.36788772,0.00013598,2]
[333472943,1722168370934,-2022.19990023,0.00013687,6]
[333472944,1722168370958,-660.4508084,0.00013688,5]
[333472945,1722168370981,-5000.0,0.00013688,2]
[333472946,1722168371004,-7985.61,0.00013688,2]
[333472947,1722168371027,-151.0,0.00013688,2]
[333472948,1722168371052,-47585.8682037,0.00013688,2]
[333472949,1722168371074,-500.0,0.00013698,2]
[333472950,1722168371097,-500.0,0.00013698,2]
[333472951,1722168371120,-500.0,0.00013698,2]
[333472952,1722168371143,-500.0,0.00013698,2]
[333472953,1722168371165,-500.0,0.00013698,2]
[333472954,1722168371189,-500.0,0.00013698,2]
[333472955,1722168371211,-500.0,0.00013698,2]
[333472956,1722168371233,-500.0,0.00013698,2]
[333472957,1722168371256,-500.0,0.00013698,2]
[333472958,1722168371278,-500.0,0.00013698,2]
[333472959,1722168371301,-500.0,0.00013698,2]
[333472960,1722168371324,-500.0,0.00013698,2]
[333472961,1722168371347,-500.0,0.00013698,2]
[333472962,1722168371369,-500.0,0.00013698,2]
[333472963,1722168371392,-500.0,0.00013698,2]
[333472964,1722168371415,-500.0,0.00013698,2]
[333472965,1722168371438,-500.0,0.00013698,2]
[333472966,1722168371462,-500.0,0.00013698,2]
[333472967,1722168371489,-500.0,0.00013698,2]
[333472968,1722168371512,-500.0,0.00013698,2]
[333472969,1722168371539,-500.0,0.00013698,2]
[333472970,1722168371562,-500.0,0.00013698,2]
[333472971,1722168371586,-500.0,0.00013698,2]
[333472972,1722168371611,-500.0,0.00013698,2]
[333472973,1722168371634,-500.0,0.00013698,2]
[333472974,1722168371657,-500.0,0.00013698,2]
[333472975,1722168371680,-500.0,0.00013698,2]
[333472976,1722168371702,-500.0,0.00013698,2]
[333472977,1722168371726,-500.0,0.00013698,2]
[333472978,1722168371751,-526.12,0.00013698,2]
[333472979,1722168371774,-500.0,0.00013698,2]
[333472980,1722168371798,-500.0,0.00013698,2]
[333472981,1722168371821,-500.0,0.00013698,2]
[333472982,1722168371843,-500.0,0.00013698,2]
[333472983,1722168371866,-500.0,0.00013698,2]
[333472984,1722168371890,-500.0,0.00013698,2]
[333472985,1722168371912,-500.0,0.00013698,2]
[333472986,1722168371935,-500.0,0.00013698,2]
[333472987,1722168371958,-500.0,0.00013698,2]
[333472988,1722168371981,-500.0,0.00013698,2]
[333472989,1722168372004,-500.0,0.00013698,2]
[333472990,1722168372026,-500.0,0.00013698,2]
[333472991,1722168372051,-500.0,0.00013698,2]
[333472992,1722168372075,-500.0,0.00013698,2]
[333472993,1722168372100,-551.52,0.00013698,2]
[333472994,1722168372124,-500.0,0.00013698,2]
[333472995,1722168372148,-500.0,0.00013698,2]
[333472996,1722168372172,-500.0,0.00013698,2]
[333472997,1722168372195,-500.0,0.00013698,2]
[333472998,1722168372221,-500.0,0.00013698,2]
[333472999,1722168372246,-500.0,0.00013698,2]
[333473000,1722168372269,-500.0,0.00013698,2]
[333473001,1722168372293,-500.0,0.00013698,2]
[333473002,1722168372316,-500.0,0.00013698,2]
[333473003,1722168372340,-500.0,0.00013698,2]
[333473004,1722168372363,-500.0,0.00013698,2]
[333473005,1722168372388,-500.0,0.00013698,2]
[333473006,1722168372413,-500.0,0.00013698,2]
[333473007,1722168372437,-152.76520851,0.00013698,2]
[333473008,1722168372460,-500.0,0.00013698,2]
[333473009,1722168372483,-500.0,0.00013698,2]
[333473010,1722168372506,-500.0,0.00013698,2]
[333473011,1722168372531,-500.0,0.00013698,2]
[333473012,1722168372555,-500.0,0.00013698,2]
[333473013,1722168372579,-500.0,0.00013698,2]
[333473014,1722168372603,-500.0,0.00013698,2]
[333473015,1722168372627,-500.0,0.00013698,2]
[333473016,1722168372651,-500.0,0.00013698,2]
[333473017,1722168372673,-500.0,0.00013698,2]
[333473018,1722168372696,-500.0,0.00013698,2]
[333473019,1722168372720,-500.0,0.00013698,2]
[333473020,1722168372743,-500.0,0.00013698,2]
[333473021,1722168372766,-500.0,0.00013698,2]
[333473022,1722168372790,-500.0,0.00013698,2]
[333473023,1722168372812,-500.0,0.00013698,2]
[333473024,1722168372835,-523.22272385,0.00013698,2]
[333473025,1722168372859,-500.0,0.00013698,2]
[333473026,1722168372882,-500.0,0.00013698,2]
[333473027,1722168372905,-500.0,0.00013698,2]
[333473028,1722168372929,-500.0,0.00013698,2]
[333473029,1722168372952,-500.0,0.00013698,2]
[333473030,1722168372976,-500.0,0.00013698,2]
[333473031,1722168372999,-504.26309056,0.00013698,2]
[333473032,1722168373023,-500.0,0.00013698,2]
[333473033,1722168373052,-500.0,0.00013698,2]
[333473034,1722168373077,-500.0,0.00013698,2]
[333473035,1722168373101,-500.0,0.00013698,2]
[333473036,1722168373124,-500.0,0.00013698,2]
[333473037,1722168373150,-150.32070938,0.00013698,2]
[333473038,1722168373176,-500.0,0.00013698,2]
[333473039,1722168373202,-500.0,0.00013698,2]
[333473040,1722168373226,-500.0,0.00013698,2]
[333473041,1722168373254,-500.0,0.00013698,2]
[333473042,1722168373280,-271.86281851,0.00013698,2]
[333473043,1722168373307,-500.0,0.00013698,2]
[333473044,1722168373330,-500.0,0.00013698,2]
[333473045,1722168373354,-500.0,0.00013698,2]
[333473046,1722168373378,-500.0,0.00013698,2]
[333473047,1722168373401,-500.0,0.00013698,2]
[333473048,1722168373427,-500.0,0.00013698,2]
[333473049,1722168373453,-500.0,0.00013698,2]
[333473050,1722168373477,-500.0,0.00013698,2]
[333473051,1722168373501,-500.0,0.00013698,2]
[333473052,1722168373530,-500.0,0.00013698,2]
[333473053,1722168373558,-500.0,0.00013698,2]
[333473054,1722168373674,-500.0,0.00013698,2]
[333473055,1722168373700,-500.0,0.00013698,2]
[333473056,1722168373724,-500.0,0.00013698,2]
[333473057,1722168373751,-500.0,0.00013698,2]
[333473058,1722168373775,-500.0,0.00013698,2]
[333473059,1722168373800,-500.0,0.00013698,2]
[333473060,1722168373825,-500.0,0.00013698,2]
[333473061,1722168373849,-500.0,0.00013698,2]
[333473062,1722168373874,-500.0,0.00013698,2]
[333473063,1722168373898,-500.0,0.00013698,2]
[333473064,1722168373922,-500.0,0.00013698,2]
[333473065,1722168373945,-500.0,0.00013698,2]
[333473066,1722168373968,-500.0,0.00013698,2]
[333473067,1722168373992,-500.0,0.00013698,2]
[333473068,1722168374016,-500.0,0.00013698,2]
[333473069,1722168374039,-500.0,0.00013698,2]
[333473070,1722168374063,-500.0,0.00013698,2]
[333473071,1722168374086,-506.40701166,0.00013698,2]
[333473072,1722168374112,-500.0,0.00013698,2]
[333473073,1722168374135,-423.09693936,0.00013698,2]
[333473074,1722168374158,-500.0,0.00013698,2]
[333473075,1722168374181,-500.0,0.00013698,2]
[333473076,1722168374205,-500.0,0.00013698,2]
[333473077,1722168374229,-500.0,0.00013698,2]
[333473078,1722168374253,-500.0,0.00013698,2]
[333473079,1722168374276,-500.0,0.00013698,2]
[333473080,1722168374300,-500.0,0.00013698,2]
[333473081,1722168374323,-500.0,0.00013698,2]
[333473082,1722168374346,-500.0,0.00013698,2]
[333473083,1722168374370,-500.0,0.00013698,2]
[333473084,1722168374397,-500.0,0.00013698,2]
[333473085,1722168374420,-500.0,0.00013698,2]
[333473086,1722168374444,-619.69,0.00013698,2]
[333473087,1722168374468,-500.0,0.00013698,2]
[333473088,1722168374492,-500.0,0.00013698,2]
[333473089,1722168374515,-500.0,0.00013698,2]
[333473090,1722168374541,-500.0,0.00013698,2]
[333473091,1722168374564,-500.0,0.00013698,2]
[333473092,1722168374589,-500.0,0.00013698,2]
[333473093,1722168374614,-500.0,0.00013698,2]
[333473094,1722168374637,-249.06421131,0.00013698,2]
[333473095,1722168374660,-500.0,0.00013698,2]
[333473096,1722168374686,-500.0,0.00013698,2]
[333473097,1722168374714,-500.0,0.00013698,2]
[333473098,1722168374739,-570.42,0.00013698,2]
[333473099,1722168374764,-500.0,0.00013698,2]
[333473100,1722168374789,-506.54896402,0.00013698,2]
[333473101,1722168374813,-517.95,0.00013698,2]
[333473102,1722168374837,-500.0,0.00013698,2]
[333473103,1722168374861,-500.0,0.00013698,2]
[333473104,1722168374885,-500.0,0.00013698,2]
[333473105,1722168374910,-500.0,0.00013698,2]
[333473106,1722168374936,-1432.71,0.00013698,2]
[333473107,1722168374963,-500.0,0.00013698,2]
[333473108,1722168374987,-500.0,0.00013698,2]
[333473109,1722168375010,-500.0,0.00013698,2]
[333473110,1722168375033,-500.0,0.00013698,2]
[333473111,1722168375056,-500.0,0.00013698,2]
[333473112,1722168375079,-500.0,0.00013698,2]
[333473113,1722168375104,-500.0,0.00013698,2]
[333473114,1722168375127,-500.0,0.00013698,2]
[333473115,1722168375151,-500.0,0.00013698,2]
[333473116,1722168375173,-211.14573653,0.00013698,2]
[333473117,1722168375198,-213.33599887,0.00013698,2]
[333473118,1722168375220,-485.68311095,0.00013698,2]
[333473119,1722168375244,-500.0,0.00013698,2]
[333473120,1722168375267,-584.5320026,0.00013698,2]
[333473121,1722168375289,-500.0,0.00013698,2]
[333473122,1722168375312,-500.0,0.00013698,2]
[333473123,1722168375336,-500.0,0.00013698,2]
[333473124,1722168375361,-500.0,0.00013698,2]
[333473125,1722168375385,-500.0,0.00013698,2]
[333473126,1722168375410,-500.0,0.00013698,2]
[333473127,1722168375436,-500.0,0.00013698,2]
[333473128,1722168375460,-500.0,0.00013698,2]
[333473129,1722168375484,-500.0,0.00013698,2]
[333473130,1722168375506,-200.0,0.00013698,2]
[333473131,1722168375532,-500.0,0.00013698,2]
[333473132,1722168375560,-500.0,0.00013698,2]
[333473133,1722168375584,-500.0,0.00013698,2]
[333473134,1722168375609,-500.0,0.00013698,2]
[333473135,1722168375632,-345.0,0.00013698,2]
[333473136,1722168375657,-500.0,0.00013698,2]
[333473137,1722168375684,-502.19630273,0.00013698,2]
[333473138,1722168375709,-500.0,0.00013698,2]
[333473139,1722168375733,-500.0,0.00013698,2]
[333473140,1722168375756,-513.33,0.00013698,2]
[333473141,1722168375779,-500.0,0.00013698,2]
[333473142,1722168375804,-500.0,0.00013698,2]
[333473143,1722168375827,-500.0,0.00013698,2]
[333473144,1722168375854,-500.0,0.00013698,2]
[333473145,1722168375877,-500.0,0.00013698,2]
[333473146,1722168375902,-359.17240182,0.00013698,2]
[333473147,1722168375925,-500.0,0.00013698,2]
[333473148,1722168375950,-500.0,0.00013698,2]
[333473149,1722168375973,-500.0,0.00013698,2]
[333473150,1722168375996,-500.0,0.00013698,2]
[333473151,1722168376019,-588.15,0.00013698,2]
[333473152,1722168376044,-500.0,0.00013698,2]
[333473153,1722168376068,-505.96184749,0.00013698,2]
[333473154,1722168376091,-500.0,0.00013698,2]
[333473155,1722168376114,-782.73,0.00013698,2]
[333473156,1722168376137,-500.0,0.00013698,2]
[333473157,1722168376161,-500.0,0.00013698,2]
[333473158,1722168376185,-500.0,0.00013698,2]
[333473159,1722168376208,-500.0,0.00013698,2]
[333473160,1722168376232,-500.0,0.00013698,2]
[333473161,1722168376255,-169.06239659,0.00013698,2]
[333473162,1722168376277,-241.26826775,0.00013698,2]
[333473163,1722168376302,-500.0,0.00013698,2]
[333473164,1722168376328,-500.0,0.00013698,2]
[333473165,1722168376352,-500.0,0.00013698,2]
[333473166,1722168376376,-500.0,0.00013698,2]
[333473167,1722168376398,-500.0,0.00013698,2]
[333473168,1722168376424,-500.0,0.00013698,2]
[333473169,1722168376449,-500.0,0.00013698,2]
[333473170,1722168376473,-500.0,0.00013698,2]
[333473171,1722168376496,-500.0,0.00013698,2]
[333473172,1722168376520,-500.0,0.00013698,2]
[333473173,1722168376548,-500.0,0.00013698,2]
[333473174,1722168376572,-502.1682564,0.00013698,2]
[333473175,1722168376595,-500.0,0.00013698,2]
[333473176,1722168376622,-500.0,0.00013698,2]
[333473177,1722168376646,-500.0,0.00013698,2]
[333473178,1722168376669,-342.0328129,0.00013698,2]
[333473179,1722168376693,-500.0,0.00013698,2]
[333473180,1722168376715,-500.0,0.00013698,2]
[333473181,1722168376738,-500.0,0.00013698,2]
[333473182,1722168376762,-500.0,0.00013698,2]
[333473183,1722168376787,-500.0,0.00013698,2]
[333473184,1722168376811,-500.0,0.00013698,2]
[333473185,1722168376836,-199.112996,0.00013699,2]
[333473186,1722168376958,-3000.0,0.00013699,2]
[333473187,1722168376983,-151.0,0.00013699,2]
[333473188,1722168377006,-151.0,0.00013699,2]
[333473189,1722168377028,-301.0,0.00013699,2]
[333473190,1722168377051,-274.301469,0.00013699,2]
[333473191,1722168377075,-166.666666,0.00013737,2]
[333473192,1722168377102,-200.0,0.00013818,2]
[333473193,1722168377125,-477.36788771,0.00013924,2]
[333473194,1722168377149,-842.42302138,0.00013962,2]
[333473195,1722168440152,-309.3349299,0.0001,2]
[333473196,1722168440173,-210.369159,0.00012744,2]
[333473197,1722168440196,-245.75987511,0.00013698,2]
[333473198,1722168442105,-254.24012489,0.00013698,2]
[333473199,1722168442127,-500.0,0.00013698,2]
[333473200,1722168442149,-346.5386614,0.00013698,2]
[333473201,1722168444103,-153.4613386,0.00013698,2]
[333473202,1722168444129,-146.5386614,0.00013698,2]
[333473203,1722168444162,-353.4613386,0.00013698,2]
[333473204,1722168444185,-434.18908386,0.00013698,2]
[333473205,1722168547112,-250.22702269,9.999e-05,2]
[333473206,1722168614882,167.88605431,9.999e-05,2]
[333473207,1722168614907,178.20762842,9.999e-05,2]
[333473208,1722168614930,174.16316939,9.999e-05,2]
[333473259,1722168631873,-165.254992,0.00013425,2]
[333473261,1722168631884,-65.81091614,0.00013698,2]
[333473263,1722168631894,-500.0,0.00013698,2]
[333473265,1722168631905,-500.0,0.00013698,2]
[333473267,1722168631916,-500.0,0.00013698,2]
[333473269,1722168631927,-500.0,0.00013698,2]
[333473272,1722168631938,-500.0,0.00013698,2]
[333473274,1722168631949,-560.29,0.00013698,2]
[333473276,1722168631959,-500.0,0.00013698,2]
[333473278,1722168631970,-500.0,0.00013698,2]
[333473280,1722168631981,-642.76952483,0.00013698,2]
[333473282,1722168631992,-500.0,0.00013698,2]
[333473283,1722168632002,-500.0,0.00013698,2]
[333473285,1722168632013,-500.0,0.00013698,2]
[333473287,1722168632024,-500.0,0.00013698,2]
[333473288,1722168632034,-507.89668988,0.00013698,2]
[333473289,1722168632044,-1373.01,0.00013698,2]
[333473291,1722168632055,-500.0,0.00013698,2]
[333473293,1722168632066,-500.0,0.00013698,2]
[333473294,1722168632077,-352.54964655,0.00013698,2]
[333473295,1722168632088,-500.0,0.00013698,2]
[333473296,1722168632100,-500.0,0.00013698,2]
[333473297,1722168632113,-750.11,0.00013698,2]
[333473298,1722168632124,-500.0,0.00013698,2]
[333473299,1722168632137,-6139.893328,0.00013698,2]
[333473300,1722168632149,-500.0,0.00013698,2]
[333473301,1722168632162,-500.0,0.00013698,2]
[333473302,1722168632175,-500.0,0.00013698,2]
[333473303,1722168632186,-500.0,0.00013698,2]
[333473304,1722168632196,-645.26,0.00013698,2]
[333473305,1722168632208,-500.0,0.00013698,2]
[333473306,1722168632218,-3000.0,0.00013699,2]
[333473307,1722168632229,-164.4384806,0.00013822,2]
[333473308,1722168632240,-871.68569936,0.00013871,2]
[333473309,1722168632250,-205.0,0.0001396,2]
[333473310,1722168632259,-500.0,0.00013961,2]
[333473311,1722168632271,-335.9,0.00013961,2]
[333473312,1722168632280,-500.0,0.00013961,2]
[333473313,1722168632290,-500.0,0.00013961,2]
[333473314,1722168632299,-500.0,0.00013961,2]
[333473315,1722168632309,-151.92,0.00013961,2]
[333473316,1722168632318,-500.0,0.00013961,2]